[Event "FIDE Women World Blitz 2021"]
[Site "Warsaw"]
[Date "2021.12.30"]
[Round "16.8"]
[White "Parol, Pola"]
[Black "Budkiewicz, Magdalena"]
[Result "1-0"]
[ECO "B83"]
[WhiteElo "1823"]
[BlackElo "1624"]
[Annotator "NA"]
[PlyCount "97"]
[EventDate "2021.12.29"]
[EventType "swiss"]
[EventCountry "POL"]
[Tiebreak "Cut1 Buchholz"]
[SourceTitle "playchess.com"]
[Source "ChessBase"]
[SourceQuality "1"]
[TimeControl "180+2"]

1. e4 {[%emt 0:00:01]} c5 {[%emt 0:00:00]} 2. Nf3 {[%emt 0:00:01]} d6 {[%emt 0:
00:01]} 3. d4 {[%emt 0:00:00]} cxd4 {[%emt 0:00:01]} 4. Nxd4 {[%emt 0:00:01]}
Nf6 {[%emt 0:00:01]} 5. Nc3 {[%emt 0:00:01]} a6 {[%emt 0:00:01]} 6. Nb3 {
[%emt 0:00:01]} e6 {[%emt 0:00:00]} 7. Be3 {[%emt 0:00:03]} Be7 {[%emt 0:00:01]
} 8. Be2 {[%emt 0:00:03]} Nc6 {[%emt 0:00:04]} 9. O-O {[%emt 0:00:02]} O-O {
[%emt 0:00:02]} 10. f4 {[%emt 0:00:02]} b5 {[%emt 0:00:05]} 11. a3 {[%emt 0:00:
01]} Bb7 {[%emt 0:00:00]} 12. Kh1 {[%emt 0:00:03]} Rc8 {[%emt 0:00:06]} 13. Qe1
{[%emt 0:00:03]} Qc7 {[%emt 0:00:18]} 14. Qg3 {[%emt 0:00:08]} Kh8 {[%emt 0:00:
02]} 15. Rae1 {[%emt 0:00:06]} Nd7 {[%emt 0:00:18]} 16. Qf2 {[%emt 0:00:39]}
Bf6 {[%emt 0:00:08]} 17. Bd2 {[%emt 0:00:07]} Nb6 {[%emt 0:00:09]} 18. g4 {
[%emt 0:00:14]} Nc4 {[%emt 0:00:06]} 19. g5 {[%emt 0:00:07]} Be7 {[%emt 0:00:
10]} 20. Bc1 {[%emt 0:00:03]} d5 {[%emt 0:00:33]} 21. Bf3 {[%emt 0:00:03]} dxe4
{[%emt 0:00:14]} 22. Nxe4 {[%emt 0:00:07]} Nd6 {[%emt 0:00:05]} 23. Qh4 {
[%emt 0:00:11]} Nf5 {[%emt 0:00:06]} 24. Qf2 {[%emt 0:00:07]} Rcd8 {[%emt 0:00:
14]} 25. Rd1 {[%emt 0:00:04]} Na5 {[%emt 0:00:10]} 26. Nxa5 {[%emt 0:00:08]}
Qxa5 {[%emt 0:00:01]} 27. Ng3 {[%emt 0:00:08]} Bxf3+ {[%emt 0:00:06]} 28. Qxf3
{[%emt 0:00:01]} Nd4 {[%emt 0:00:01]} 29. Qe4 {[%emt 0:00:07]} e5 {[%emt 0:00:
43]} 30. fxe5 {[%emt 0:00:08]} Ne6 {[%emt 0:00:01]} 31. h4 {[%emt 0:00:27]} Qc7
{[%emt 0:00:03]} 32. Nf5 {[%emt 0:00:04]} Bc5 {[%emt 0:00:07]} 33. b4 {[%emt 0:
00:09]} Be7 {[%emt 0:00:01]} 34. Be3 {[%emt 0:00:06]} Rxd1 {[%emt 0:00:06]} 35.
Rxd1 {[%emt 0:00:01]} Rc8 {[%emt 0:00:00]} 36. Kg1 {[%emt 0:00:16]} Bf8 {
[%emt 0:00:07]} 37. Nd6 {[%emt 0:00:05]} Bxd6 {[%emt 0:00:01]} 38. exd6 {
[%emt 0:00:01]} Qd7 {[%emt 0:00:01]} 39. Qf5 {[%emt 0:00:09]} Kg8 {[%emt 0:00:
02]} 40. Qd3 {[%emt 0:00:04]} Rc4 {[%emt 0:00:01]} 41. Bf2 {[%emt 0:00:03]}
Rg4+ {[%emt 0:00:01]} 42. Kf1 {[%emt 0:00:01]} Rc4 {[%emt 0:00:01]} 43. Qd5 {
[%emt 0:00:04]} Rxc2 {[%emt 0:00:04]} 44. Ke1 {[%emt 0:00:06]} Rc8 {[%emt 0:00:
03]} 45. Kf1 {[%emt 0:00:01]} Qd8 {[%emt 0:00:03]} 46. d7 {[%emt 0:00:03]} Rc7
{[%emt 0:00:01]} 47. Bb6 {[%emt 0:00:03]} Nf4 {[%emt 0:00:03]} 48. Bxc7 {
[%emt 0:00:01]} Qxc7 {[%emt 0:00:01]} 49. d8=Q+ {[%emt 0:00:02]} 1-0

[Event "FIDE Women World Blitz 2021"]
[Site "Warsaw"]
[Date "2021.12.30"]
[Round "16.9"]
[White "Vaishali R"]
[Black "Zatonskih, Anna"]
[Result "1-0"]
[ECO "B13"]
[WhiteElo "2405"]
[BlackElo "2394"]
[Annotator "NA"]
[PlyCount "177"]
[EventDate "2021.12.29"]
[EventType "swiss"]
[EventCountry "POL"]
[Tiebreak "Cut1 Buchholz"]
[SourceTitle "playchess.com"]
[Source "ChessBase"]
[SourceQuality "1"]
[TimeControl "180+2"]

1. d4 {[%emt 0:00:02]} d5 {[%emt 0:00:00]} 2. Bf4 c5 3. e3 {[%emt 0:00:03]} Nc6
{[%emt 0:00:02]} 4. Nf3 {[%emt 0:00:01]} Bg4 {[%emt 0:00:04]} 5. Nbd2 {[%emt 0:
00:03]} e6 {[%emt 0:00:01]} 6. c3 {[%emt 0:00:01]} cxd4 {[%emt 0:00:01]} 7.
exd4 {[%emt 0:00:02]} Bd6 {[%emt 0:00:02]} 8. Bxd6 {[%emt 0:00:07]} Qxd6 {
[%emt 0:00:01]} 9. h3 {[%emt 0:00:07]} Bh5 {[%emt 0:00:01]} 10. Bd3 {[%emt 0:
00:01]} Nf6 {[%emt 0:00:10]} 11. O-O {[%emt 0:00:04]} O-O {[%emt 0:00:04]} 12.
Re1 {[%emt 0:00:02]} Rab8 {[%emt 0:00:12]} 13. a4 {[%emt 0:00:02]} Qc7 {
[%emt 0:00:08]} 14. Qb1 {[%emt 0:00:23]} Bg6 {[%emt 0:00:05]} 15. Ne5 {[%emt 0:
00:05]} Nxe5 {[%emt 0:00:17]} 16. dxe5 {[%emt 0:00:02]} Nd7 {[%emt 0:00:04]}
17. Nf3 {[%emt 0:00:05]} Nc5 {[%emt 0:00:13]} 18. Bxg6 {[%emt 0:00:05]} fxg6 {
[%emt 0:00:08]} 19. Nd4 {[%emt 0:00:10]} Qe7 {[%emt 0:00:16]} 20. Qd1 {[%emt 0:
00:14]} a6 {[%emt 0:00:03]} 21. Qg4 {[%emt 0:00:23]} Rbe8 {[%emt 0:00:01]} 22.
Re3 {[%emt 0:00:07]} g5 {[%emt 0:00:10]} 23. Rae1 {[%emt 0:00:29]} h6 {[%emt 0:
00:47]} 24. a5 {[%emt 0:00:04]} Ne4 {[%emt 0:00:15]} 25. f3 {[%emt 0:00:20]}
Nc5 {[%emt 0:00:01]} 26. b4 {[%emt 0:00:16]} Nd7 {[%emt 0:00:00]} 27. Qg3 {
[%emt 0:00:03]} Nb8 {[%emt 0:00:16]} 28. Qf2 {[%emt 0:00:11]} Rc8 {[%emt 0:00:
01]} 29. Nb3 {[%emt 0:00:10]} Rc4 {[%emt 0:00:07]} 30. Nc5 {[%emt 0:00:05]} Nc6
{[%emt 0:00:00]} 31. Qb2 {[%emt 0:00:06]} Rf5 {[%emt 0:00:15]} 32. Nd3 {
[%emt 0:00:03]} Rf8 {[%emt 0:00:09]} 33. Qb3 {[%emt 0:00:02]} Nd8 {[%emt 0:00:
03]} 34. Nb2 {[%emt 0:00:04]} Rc7 {[%emt 0:00:02]} 35. c4 {[%emt 0:00:01]} dxc4
{[%emt 0:00:04]} 36. Nxc4 {[%emt 0:00:01]} Nf7 {[%emt 0:00:01]} 37. Rd3 {
[%emt 0:00:03]} Rd7 {[%emt 0:00:06]} 38. Red1 {[%emt 0:00:02]} Rfd8 {[%emt 0:
00:01]} 39. Kh2 {[%emt 0:00:04]} Rd5 {[%emt 0:00:03]} 40. Rxd5 {[%emt 0:00:02]}
exd5 {[%emt 0:00:01]} 41. Nb6 {[%emt 0:00:02]} Qxe5+ {[%emt 0:00:01]} 42. Kh1 {
[%emt 0:00:01]} d4 {[%emt 0:00:03]} 43. Qc4 {[%emt 0:00:03]} Qd6 {[%emt 0:00:
03]} 44. Qd3 {[%emt 0:00:02]} Ne5 {[%emt 0:00:02]} 45. Qb3+ {[%emt 0:00:01]}
Kh8 {[%emt 0:00:00]} 46. Na4 {[%emt 0:00:03]} d3 {[%emt 0:00:02]} 47. Nc5 {
[%emt 0:00:00]} Qc6 {[%emt 0:00:05]} 48. Qc3 {[%emt 0:00:04]} Rd5 {[%emt 0:00:
01]} 49. Qb3 {[%emt 0:00:04]} Rd8 {[%emt 0:00:03]} 50. Qb2 {[%emt 0:00:03]} Ng6
{[%emt 0:00:03]} 51. Qc3 {[%emt 0:00:01]} Nf4 {[%emt 0:00:01]} 52. Rd2 {
[%emt 0:00:02]} Qd5 {[%emt 0:00:01]} 53. Kh2 {[%emt 0:00:03]} Kg8 {[%emt 0:00:
01]} 54. Ne4 {[%emt 0:00:01]} Qd4 {[%emt 0:00:01]} 55. Qb3+ {[%emt 0:00:02]}
Qd5 {[%emt 0:00:01]} 56. Qc3 {[%emt 0:00:01]} Kh8 {[%emt 0:00:01]} 57. Nc5 {
[%emt 0:00:05]} Ne6 {[%emt 0:00:05]} 58. Rxd3 {[%emt 0:00:00]} Qc6 {[%emt 0:00:
03]} 59. Rxd8+ {[%emt 0:00:01]} Nxd8 {[%emt 0:00:01]} 60. Qd4 {[%emt 0:00:01]}
Ne6 {[%emt 0:00:03]} 61. Nxe6 {[%emt 0:00:03]} Qxe6 {[%emt 0:00:00]} 62. Qd8+ {
[%emt 0:00:01]} Kh7 {[%emt 0:00:02]} 63. Qd3+ {[%emt 0:00:01]} Kh8 {[%emt 0:00:
01]} 64. Qd4 {[%emt 0:00:01]} Qc6 {[%emt 0:00:01]} 65. Kg3 {[%emt 0:00:01]} Kg8
{[%emt 0:00:03]} 66. Kg4 {[%emt 0:00:05]} Qe6+ {[%emt 0:00:00]} 67. Kg3 {
[%emt 0:00:01]} Qc6 {[%emt 0:00:01]} 68. Kf2 {[%emt 0:00:02]} Kf7 {[%emt 0:00:
01]} 69. Ke3 {[%emt 0:00:01]} g6 {[%emt 0:00:05]} 70. Kd3 {[%emt 0:00:02]} Ke6
{[%emt 0:00:03]} 71. Qe4+ {[%emt 0:00:04]} Kd7 {[%emt 0:00:06]} 72. Qd4+ {
[%emt 0:00:03]} Qd6 {[%emt 0:00:01]} 73. Ke4 {[%emt 0:00:02]} Qxd4+ {[%emt 0:
00:03]} 74. Kxd4 {[%emt 0:00:01]} Kd6 {[%emt 0:00:00]} 75. g3 {[%emt 0:00:03]}
h5 {[%emt 0:00:01]} 76. Ke4 {[%emt 0:00:01]} Ke6 {[%emt 0:00:01]} 77. h4 {
[%emt 0:00:03]} gxh4 {[%emt 0:00:04]} 78. gxh4 {[%emt 0:00:01]} Kf6 {[%emt 0:
00:00]} 79. Kf4 {[%emt 0:00:01]} Ke6 {[%emt 0:00:01]} 80. Kg5 {[%emt 0:00:01]}
Kf7 {[%emt 0:00:01]} 81. f4 {[%emt 0:00:00]} Kg7 {[%emt 0:00:04]} 82. f5 {
[%emt 0:00:01]} gxf5 {[%emt 0:00:01]} 83. Kxf5 {[%emt 0:00:01]} Kh6 {[%emt 0:
00:01]} 84. Kf6 {[%emt 0:00:01]} Kh7 {[%emt 0:00:01]} 85. Kg5 {[%emt 0:00:00]}
Kg7 {[%emt 0:00:01]} 86. Kxh5 {[%emt 0:00:01]} Kh7 {[%emt 0:00:08]} 87. Kg5 {
[%emt 0:00:01]} Kg7 {[%emt 0:00:01]} 88. Kf5 Kh6 {[%emt 0:00:01]} 89. Ke6 {
[%emt 0:00:01]} 1-0

[Event "FIDE Women World Blitz 2021"]
[Site "Warsaw"]
[Date "2021.12.30"]
[Round "16.9"]
[White "Zabrzanska, Weronika"]
[Black "Jarocka, Liwia"]
[Result "0-1"]
[ECO "B01"]
[WhiteElo "1596"]
[BlackElo "1851"]
[Annotator "NA"]
[PlyCount "148"]
[EventDate "2021.12.29"]
[EventType "swiss"]
[EventCountry "POL"]
[Tiebreak "Cut1 Buchholz"]
[SourceTitle "playchess.com"]
[Source "ChessBase"]
[SourceQuality "1"]
[TimeControl "180+2"]

1. e4 {[%emt 0:00:00]} d5 {[%emt 0:00:02]} 2. exd5 {[%emt 0:00:02]} Qxd5 {
[%emt 0:00:00]} 3. Nc3 {[%emt 0:00:01]} Qd8 {[%emt 0:00:01]} 4. d4 {[%emt 0:00:
01]} g6 {[%emt 0:00:01]} 5. Nf3 {[%emt 0:00:02]} Bg7 {[%emt 0:00:01]} 6. h3 {
[%emt 0:00:01]} Nf6 {[%emt 0:00:02]} 7. Be2 {[%emt 0:00:05]} O-O {[%emt 0:00:
01]} 8. O-O {[%emt 0:00:01]} b6 {[%emt 0:00:02]} 9. Be3 {[%emt 0:00:04]} Bb7 {
[%emt 0:00:01]} 10. Qd2 {[%emt 0:00:11]} e6 {[%emt 0:00:02]} 11. Rad1 {[%emt 0:
00:05]} Nc6 {[%emt 0:00:01]} 12. Bh6 {[%emt 0:00:07]} Ne7 {[%emt 0:00:05]} 13.
Bxg7 {[%emt 0:00:07]} Kxg7 {[%emt 0:00:01]} 14. Rfe1 {[%emt 0:00:12]} Rc8 {
[%emt 0:00:03]} 15. a3 {[%emt 0:00:03]} c5 {[%emt 0:00:09]} 16. dxc5 {[%emt 0:
00:03]} Qxd2 {[%emt 0:00:02]} 17. Nxd2 {[%emt 0:00:11]} Rxc5 {[%emt 0:00:01]}
18. Bf3 {[%emt 0:00:10]} Bxf3 {[%emt 0:00:03]} 19. Nxf3 {[%emt 0:00:01]} Ned5 {
[%emt 0:00:06]} 20. Nxd5 {[%emt 0:00:11]} Nxd5 {[%emt 0:00:01]} 21. Rd2 {
[%emt 0:00:05]} Rfc8 {[%emt 0:00:02]} 22. c3 {[%emt 0:00:02]} b5 {[%emt 0:00:
12]} 23. Red1 {[%emt 0:00:02]} R5c7 {[%emt 0:00:04]} 24. Nd4 {[%emt 0:00:13]}
a6 {[%emt 0:00:01]} 25. Kf1 {[%emt 0:00:03]} Nb6 {[%emt 0:00:01]} 26. Rc2 {
[%emt 0:00:33]} Nc4 {[%emt 0:00:07]} 27. Ra1 {[%emt 0:00:04]} e5 {[%emt 0:00:
06]} 28. Nf3 {[%emt 0:00:04]} f6 {[%emt 0:00:03]} 29. Ke2 {[%emt 0:00:11]} Nb6
{[%emt 0:00:13]} 30. Rd1 {[%emt 0:00:11]} Kf7 {[%emt 0:00:02]} 31. Rd6 {
[%emt 0:00:03]} Rc6 {[%emt 0:00:03]} 32. Rd1 {[%emt 0:00:18]} Ke7 {[%emt 0:00:
03]} 33. Nd2 {[%emt 0:00:02]} Nd5 {[%emt 0:00:08]} 34. Nb3 {[%emt 0:00:10]}
Nf4+ {[%emt 0:00:02]} 35. Kf1 {[%emt 0:00:04]} R6c7 {[%emt 0:00:04]} 36. Rcd2 {
[%emt 0:00:07]} h5 {[%emt 0:00:07]} 37. h4 {[%emt 0:00:01]} Ne6 {[%emt 0:00:04]
} 38. Na5 {[%emt 0:00:11]} Nc5 {[%emt 0:00:14]} 39. f3 {[%emt 0:00:06]} Rd7 {
[%emt 0:00:06]} 40. Rxd7+ {[%emt 0:00:07]} Nxd7 {[%emt 0:00:01]} 41. Nb3 {
[%emt 0:00:01]} Nb6 {[%emt 0:00:04]} 42. Na5 {[%emt 0:00:04]} Na4 {[%emt 0:00:
05]} 43. Rd2 {[%emt 0:00:02]} Rc7 {[%emt 0:00:05]} 44. Ke2 {[%emt 0:00:04]} Ke6
{[%emt 0:00:05]} 45. Kd1 {[%emt 0:00:01]} Rd7 {[%emt 0:00:02]} 46. Rxd7 {
[%emt 0:00:02]} Kxd7 {[%emt 0:00:01]} 47. Kc2 {[%emt 0:00:03]} Nc5 {[%emt 0:00:
06]} 48. c4 {[%emt 0:00:01]} f5 {[%emt 0:00:11]} 49. cxb5 {[%emt 0:00:03]} axb5
{[%emt 0:00:01]} 50. Nb3 {[%emt 0:00:02]} Ne6 {[%emt 0:00:05]} 51. g3 {[%emt 0:
00:02]} g5 {[%emt 0:00:07]} 52. hxg5 {[%emt 0:00:02]} Nxg5 {[%emt 0:00:01]} 53.
Nd2 {[%emt 0:00:02]} Kc6 {[%emt 0:00:04]} 54. Kd3 {[%emt 0:00:01]} Kd5 {
[%emt 0:00:02]} 55. b3 {[%emt 0:00:01]} Ne6 {[%emt 0:00:06]} 56. a4 {[%emt 0:
00:01]} Nc5+ {[%emt 0:00:03]} 57. Kc3 {[%emt 0:00:02]} bxa4 {[%emt 0:00:01]}
58. bxa4 {[%emt 0:00:03]} Nxa4+ {[%emt 0:00:00]} 59. Kd3 {[%emt 0:00:03]} Nc5+
{[%emt 0:00:01]} 60. Ke3 {[%emt 0:00:01]} Ne6 {[%emt 0:00:01]} 61. Nb1 {
[%emt 0:00:04]} f4+ {[%emt 0:00:05]} 62. gxf4 {[%emt 0:00:01]} exf4+ {[%emt 0:
00:01]} 63. Kf2 {[%emt 0:00:01]} Ke5 {[%emt 0:00:07]} 64. Nd2 {[%emt 0:00:02]}
Ng5 {[%emt 0:00:11]} 65. Nc4+ {[%emt 0:00:01]} Kf6 {[%emt 0:00:05]} 66. Nd2 {
[%emt 0:00:02]} h4 {[%emt 0:00:03]} 67. Nf1 {[%emt 0:00:01]} Kf5 {[%emt 0:00:
05]} 68. Nh2 {[%emt 0:00:01]} Nf7 {[%emt 0:00:03]} 69. Ng4 {[%emt 0:00:02]} Ne5
{[%emt 0:00:03]} 70. Nh2 {[%emt 0:00:04]} Kg5 {[%emt 0:00:02]} 71. Kg2 {
[%emt 0:00:02]} Kh5 {[%emt 0:00:07]} 72. Nf1 {[%emt 0:00:01]} Nf7 {[%emt 0:00:
06]} 73. Nd2 {[%emt 0:00:02]} Ng5 {[%emt 0:00:02]} 74. Nf1 {[%emt 0:00:04]} h3+
{[%emt 0:00:02]} 0-1

[Event "FIDE Women World Blitz 2021"]
[Site "Warsaw"]
[Date "2021.12.30"]
[Round "16.10"]
[White "Paehtz, Elisabeth"]
[Black "Kulon, Klaudia"]
[Result "1-0"]
[ECO "D00"]
[WhiteElo "2485"]
[BlackElo "2328"]
[Annotator "ChessBase"]
[PlyCount "79"]
[EventDate "2021.12.29"]
[EventType "swiss"]
[EventCountry "POL"]
[Tiebreak "Cut1 Buchholz"]
[SourceTitle "playchess.com"]
[Source "ChessBase"]
[SourceQuality "1"]
[TimeControl "180+2"]

1. d4 {[%emt 0:00:02]} d5 {[%emt 0:00:02]} 2. Bf4 {[%emt 0:00:02]} Nf6 {
[%emt 0:00:02]} 3. Nc3 {[%emt 0:00:02]} c5 {[%emt 0:00:03]} 4. e3 {[%emt 0:00:
01]} Nc6 {[%emt 0:00:02]} 5. Nb5 {[%emt 0:00:03]} e5 {[%emt 0:00:17]} 6. dxe5 {
[%emt 0:00:02]} Ng4 {[%emt 0:00:31]} 7. e6 {[%emt 0:00:24]} Nge5 {[%emt 0:00:
05]} 8. exf7+ {[%emt 0:00:05]} Kxf7 {[%emt 0:00:03]} 9. Bxe5 {[%emt 0:00:15]}
Nxe5 {[%emt 0:00:01]} 10. Qh5+ {[%emt 0:00:01]} Ng6 {[%emt 0:00:00]} 11. Nf3 {
[%emt 0:00:07]} Kg8 {[%emt 0:00:16]} 12. Nc3 {[%emt 0:00:06]} Be6 {[%emt 0:00:
26]} 13. Ng5 {[%emt 0:00:08]} Bf5 {[%emt 0:00:21]} 14. O-O-O {[%emt 0:00:12]}
Be7 {[%emt 0:00:16]} 15. Rxd5 {[%emt 0:00:17]} Qc8 {[%emt 0:00:01]} 16. Bc4 {
[%emt 0:00:09]} Kf8 {[%emt 0:00:11]} 17. Rxf5+ {[%emt 0:00:04]} Bf6 {[%emt 0:
00:11]} 18. Ne6+ {[%emt 0:00:07]} Ke8 {[%emt 0:00:06]} 19. Ne4 {[%emt 0:00:05]}
Ke7 {[%emt 0:00:11]} 20. Rd1 {[%emt 0:00:05]} b5 {[%emt 0:00:05]} 21. Bd5 {
[%emt 0:00:08]} Rb8 {[%emt 0:00:03]} 22. Nxf6 gxf6 {[%emt 0:00:02]} 23. Qh6 {
[%emt 0:00:03]} Qg8 {[%emt 0:00:16]} 24. Nf4 {[%emt 0:00:03]} Qf8 {[%emt 0:00:
02]} 25. Qxf8+ {[%emt 0:00:03]} Rhxf8 {[%emt 0:00:01]} 26. Nxg6+ {[%emt 0:00:
04]} hxg6 {[%emt 0:00:01]} 27. Rf3 {[%emt 0:00:01]} c4 {[%emt 0:00:02]} 28. Rh3
{[%emt 0:00:03]} a5 {[%emt 0:00:07]} 29. Rh7+ {[%emt 0:00:02]} Kd6 {[%emt 0:00:
01]} 30. Bxc4+ {[%emt 0:00:02]} Ke5 {[%emt 0:00:00]} 31. Re7+ {[%emt 0:00:02]}
Kf5 {[%emt 0:00:01]} 32. Be2 {[%emt 0:00:03]} Kg5 {[%emt 0:00:04]} 33. g3 {
[%emt 0:00:03]} f5 {[%emt 0:00:01]} 34. h4+ {[%emt 0:00:02]} Kf6 {[%emt 0:00:
01]} 35. Red7 {[%emt 0:00:02]} Rb6 {[%emt 0:00:03]} 36. R7d6+ {[%emt 0:00:02]}
Rxd6 {[%emt 0:00:02]} 37. Rxd6+ {[%emt 0:00:01]} Ke5 {[%emt 0:00:00]} 38. Rxg6
{[%emt 0:00:02]} b4 {[%emt 0:00:01]} 39. Bc4 {[%emt 0:00:01]} Re8 {[%emt 0:00:
02]} 40. Re6+ {[%emt 0:00:00]} 1-0

[Event "FIDE Women World Blitz 2021"]
[Site "Warsaw"]
[Date "2021.12.30"]
[Round "16.10"]
[White "Bartel, Marta"]
[Black "Heredia Serrano, Carla"]
[Result "1-0"]
[ECO "D03"]
[WhiteElo "2192"]
[BlackElo "2138"]
[Annotator "NA"]
[PlyCount "45"]
[EventDate "2021.12.29"]
[EventType "swiss"]
[EventCountry "POL"]
[Tiebreak "Cut1 Buchholz"]
[SourceTitle "playchess.com"]
[Source "ChessBase"]
[SourceQuality "1"]
[TimeControl "180+2"]

1. d4 {[%emt 0:00:01]} d5 {[%emt 0:00:01]} 2. Nf3 {[%emt 0:00:01]} Nf6 {
[%emt 0:00:01]} 3. Bg5 {[%emt 0:00:02]} Bf5 {[%emt 0:00:24]} 4. e3 {[%emt 0:00:
04]} e6 {[%emt 0:00:04]} 5. c4 {[%emt 0:00:01]} c6 {[%emt 0:00:03]} 6. Qb3 {
[%emt 0:00:02]} Nbd7 {[%emt 0:00:48]} 7. Nc3 {[%emt 0:00:10]} dxc4 {[%emt 0:00:
12]} 8. Bxc4 {[%emt 0:00:02]} Nb6 {[%emt 0:00:06]} 9. Be2 {[%emt 0:00:03]} Be7
{[%emt 0:00:01]} 10. O-O {[%emt 0:00:04]} O-O {[%emt 0:00:01]} 11. Rfd1 {
[%emt 0:00:02]} Ne4 {[%emt 0:00:08]} 12. Nxe4 {[%emt 0:00:20]} Bxe4 {[%emt 0:
00:01]} 13. Bf4 {[%emt 0:00:12]} Qd5 {[%emt 0:00:08]} 14. Qxd5 {[%emt 0:00:09]}
exd5 {[%emt 0:00:18]} 15. a3 {[%emt 0:00:07]} a5 {[%emt 0:00:14]} 16. Rac1 {
[%emt 0:00:02]} Rfd8 {[%emt 0:00:09]} 17. Nd2 {[%emt 0:00:03]} Bf5 {[%emt 0:00:
21]} 18. Bc7 {[%emt 0:00:06]} Na4 {[%emt 0:00:10]} 19. Bxd8 {[%emt 0:00:17]}
Bxd8 {[%emt 0:00:03]} 20. b3 {[%emt 0:00:11]} Nb6 {[%emt 0:00:15]} 21. a4 {
[%emt 0:00:15]} Be7 {[%emt 0:00:02]} 22. Nb1 {[%emt 0:00:01]} Ba3 {[%emt 0:00:
03]} 23. Nxa3 {[%emt 0:00:02]} 1-0

[Event "FIDE Women World Blitz 2021"]
[Site "Warsaw"]
[Date "2021.12.30"]
[Round "16.11"]
[White "Babiy, Olga"]
[Black "Gaponenko, Inna"]
[Result "1/2-1/2"]
[ECO "B06"]
[WhiteElo "2179"]
[BlackElo "2339"]
[Annotator "NA"]
[PlyCount "139"]
[EventDate "2021.12.29"]
[EventType "swiss"]
[EventCountry "POL"]
[Tiebreak "Cut1 Buchholz"]
[SourceTitle "playchess.com"]
[Source "ChessBase"]
[SourceQuality "1"]
[TimeControl "180+2"]

1. d4 {[%emt 0:00:00]} g6 {[%emt 0:00:01]} 2. e4 {[%emt 0:00:02]} Bg7 {[%emt 0:
00:00]} 3. Nc3 {[%emt 0:00:00]} d6 {[%emt 0:00:01]} 4. f4 {[%emt 0:00:01]} a6 {
[%emt 0:00:01]} 5. Nf3 {[%emt 0:00:01]} b5 {[%emt 0:00:00]} 6. Be3 {[%emt 0:00:
10]} Bb7 {[%emt 0:00:01]} 7. Bd3 {[%emt 0:00:07]} Nd7 {[%emt 0:00:01]} 8. a4 {
[%emt 0:00:20]} b4 {[%emt 0:00:02]} 9. Ne2 {[%emt 0:00:01]} c5 {[%emt 0:00:02]}
10. c3 {[%emt 0:00:12]} Ngf6 {[%emt 0:00:01]} 11. Ng3 {[%emt 0:00:05]} O-O {
[%emt 0:00:17]} 12. O-O {[%emt 0:00:02]} bxc3 {[%emt 0:00:32]} 13. bxc3 {
[%emt 0:00:00]} Ng4 {[%emt 0:00:01]} 14. Qe2 {[%emt 0:00:10]} Nxe3 {[%emt 0:00:
05]} 15. Qxe3 {[%emt 0:00:01]} cxd4 {[%emt 0:00:11]} 16. cxd4 {[%emt 0:00:02]}
Qa5 {[%emt 0:00:23]} 17. e5 {[%emt 0:00:09]} Bxf3 {[%emt 0:00:08]} 18. Rxf3 {
[%emt 0:00:11]} dxe5 {[%emt 0:00:02]} 19. fxe5 {[%emt 0:00:06]} Nb6 {[%emt 0:
00:01]} 20. Ne4 {[%emt 0:00:31]} Rad8 {[%emt 0:00:14]} 21. Ng5 {[%emt 0:00:31]}
Qc3 {[%emt 0:00:25]} 22. Rb1 {[%emt 0:00:10]} Nxa4 {[%emt 0:00:11]} 23. Bxa6 {
[%emt 0:00:47]} Qxd4 {[%emt 0:00:07]} 24. Qxd4 {[%emt 0:00:07]} Rxd4 {[%emt 0:
00:01]} 25. Re1 {[%emt 0:00:00]} Nc5 {[%emt 0:00:16]} 26. Bf1 {[%emt 0:00:02]}
h6 {[%emt 0:00:01]} 27. Nh3 {[%emt 0:00:02]} Rfd8 {[%emt 0:00:07]} 28. Rc3 {
[%emt 0:00:01]} Ne6 {[%emt 0:00:10]} 29. Nf2 {[%emt 0:00:01]} R4d5 {[%emt 0:00:
15]} 30. Rce3 {[%emt 0:00:01]} Nd4 {[%emt 0:00:04]} 31. Bc4 {[%emt 0:00:06]}
Rc5 {[%emt 0:00:03]} 32. Bd3 Nc6 {[%emt 0:00:05]} 33. e6 {[%emt 0:00:03]} f5 {
[%emt 0:00:01]} 34. Bb1 {[%emt 0:00:04]} Bd4 {[%emt 0:00:01]} 35. R3e2 Na5 {
[%emt 0:00:06]} 36. Kh1 {[%emt 0:00:00]} Nb3 {[%emt 0:00:02]} 37. Nd3 {[%emt 0:
00:02]} Rc3 {[%emt 0:00:02]} 38. Nf4 {[%emt 0:00:01]} Kg7 {[%emt 0:00:01]} 39.
Rb2 {[%emt 0:00:07]} Nc5 {[%emt 0:00:02]} 40. Rbe2 {[%emt 0:00:01]} Bf6 {
[%emt 0:00:02]} 41. Nh3 {[%emt 0:00:02]} Rb3 {[%emt 0:00:02]} 42. Nf4 {[%emt 0:
00:01]} Rdb8 {[%emt 0:00:02]} 43. Ba2 {[%emt 0:00:01]} Rb2 {[%emt 0:00:01]} 44.
h3 {[%emt 0:00:02]} Rxe2 45. Rxe2 {[%emt 0:00:01]} Ne4 {[%emt 0:00:03]} 46. Re1
{[%emt 0:00:05]} Rb2 {[%emt 0:00:01]} 47. Bc4 {[%emt 0:00:01]} Be5 {[%emt 0:00:
02]} 48. Nd3 {[%emt 0:00:01]} Nf2+ {[%emt 0:00:03]} 49. Nxf2 {[%emt 0:00:02]}
Rxf2 {[%emt 0:00:01]} 50. Rxe5 {[%emt 0:00:02]} Kf6 {[%emt 0:00:02]} 51. Re1 {
[%emt 0:00:00]} g5 {[%emt 0:00:01]} 52. Kg1 {[%emt 0:00:01]} Rb2 {[%emt 0:00:
01]} 53. Rc1 {[%emt 0:00:01]} h5 {[%emt 0:00:02]} 54. Kh2 {[%emt 0:00:02]} h4 {
[%emt 0:00:01]} 55. Bd5 {[%emt 0:00:01]} Rd2 {[%emt 0:00:01]} 56. Bb3 {[%emt 0:
00:02]} Rb2 {[%emt 0:00:01]} 57. Bd5 {[%emt 0:00:00]} Rd2 {[%emt 0:00:01]} 58.
Bb3 {[%emt 0:00:01]} Rb2 {[%emt 0:00:01]} 59. Bc4 {[%emt 0:00:00]} Rd2 {
[%emt 0:00:01]} 60. Kh1 {[%emt 0:00:01]} Rb2 {[%emt 0:00:01]} 61. Kg1 {[%emt 0:
00:02]} Rd2 {[%emt 0:00:01]} 62. Kf1 {[%emt 0:00:01]} Rb2 {[%emt 0:00:01]} 63.
Kg1 {[%emt 0:00:02]} Rd2 {[%emt 0:00:01]} 64. Bb3 {[%emt 0:00:01]} Rb2 {
[%emt 0:00:01]} 65. Bc4 {[%emt 0:00:01]} Rd2 {[%emt 0:00:01]} 66. Rf1 {[%emt 0:
00:03]} Ke5 {[%emt 0:00:02]} 67. Re1+ {[%emt 0:00:02]} Kf6 {[%emt 0:00:00]} 68.
Rf1 {[%emt 0:00:01]} Ke5 {[%emt 0:00:01]} 69. Re1+ {[%emt 0:00:00]} Kf4 {
[%emt 0:00:02]} 70. Rf1+ {[%emt 0:00:04]} 1/2-1/2